fUSD/lending_fUSD_20250402
["ID","MTS","AMOUNT","RATE_DAILY","PERIOD"]
[357022548,1743584834081,-338.52734639,0.000463,2]
[357022549,1743584959188,-320.2745034,0.000463,2]
[357022550,1743584962165,-150.0,0.00048261,7]
[357022551,1743584968080,-23900.0,0.00048408,2]
[357022552,1743584968101,-250.0,0.00048415,120]
[357022553,1743584968123,-157.36,0.00048441,120]
[357022554,1743584968142,-200.0,0.00048446,2]
[357022555,1743584968164,-500.0,0.00048503,120]
[357022556,1743584968186,-500.0,0.00048525,120]
[357022557,1743584968206,-168.19,0.00048606,2]
[357022558,1743584968232,-152.63,0.000488,45]
[357022559,1743584968251,-412.08,0.000488,45]
[357022560,1743584968273,-150.0,0.000489,2]
[357022561,1743584968294,-150.05,0.00048968,2]
[357022562,1743584968315,-150.05,0.00048981,2]
[357022563,1743584968336,-150.05,0.00048994,2]
[357022564,1743584968359,-500.0,0.00048997,120]
[357022565,1743584968381,-1020.18352863,0.00049,120]
[357022566,1743584968403,-1730.0,0.00049,2]
[357022567,1743584968426,-500.00889234,0.00049,120]
[357022568,1743584968447,-472.49008619,0.00049,120]
[357022569,1743584968467,-150.05,0.00049007,2]
[357022570,1743584968488,-161.67,0.00049018,2]
[357022571,1743584968509,-170.529,0.00049018,85]
[357022572,1743584968532,-150.05,0.0004902,2]
[357022573,1743584968554,-150.05,0.00049033,2]
[357022574,1743584968575,-150.05,0.00049045,2]
[357022575,1743584968605,-150.05,0.00049058,2]
[357022576,1743584968630,-150.05,0.00049071,2]
[357022577,1743584968651,-150.05,0.00049084,2]
[357022578,1743584968671,-150.05,0.00049097,2]
[357022579,1743584968692,-500.0,0.00049098,120]
[357022580,1743584968713,-500.0,0.000491,120]
[357022581,1743584968733,-150.05,0.0004911,2]
[357022582,1743584968753,-150.05,0.00049123,2]
[357022583,1743584968773,-150.05,0.00049136,2]
[357022584,1743584968794,-150.05,0.00049148,2]
[357022585,1743584968814,-150.05,0.00049161,2]
[357022586,1743584968834,-150.05,0.00049174,2]
[357022587,1743584968854,-150.05,0.00049187,2]
[357022588,1743584968874,-150.05,0.000492,2]
[357022589,1743584968898,-150.05,0.00049213,2]
[357022590,1743584968918,-500.0,0.000493,120]
[357022591,1743584968938,-345.41462159,0.000493,120]
[357022592,1743584968958,-503.19909455,0.00049315,120]
[357022593,1743584968978,-391.2301967,0.00049315,120]
[357022594,1743584969085,-112.07525389,0.00049315,120]
[357022595,1743584969106,-503.44768184,0.00049315,120]
[357022596,1743584969127,-515.92958915,0.00049315,120]
[357022597,1743584969147,-525.19912646,0.00049315,120]
[357022598,1743584969167,-500.0,0.00049315,120]
[357022599,1743584969188,-500.0,0.00049315,120]
[357022600,1743584969209,-500.0,0.00049315,120]
[357022601,1743584969234,-500.0,0.00049315,120]
[357022602,1743584969254,-13.05303532,0.00049315,120]
[357022613,1743585032006,-500.0,0.00049068,120]
[357022614,1743585032016,-495.69787179,0.00049315,120]
[357022615,1743585032026,-500.0,0.00049315,120]
[357022616,1743585032035,-500.0,0.00049315,120]
[357022617,1743585032045,-1533.92991794,0.00049315,5]
[357022618,1743585032054,-506.20389704,0.00049315,120]
[357022619,1743585032063,-501.75006587,0.00049315,120]
[357022620,1743585032072,-500.0,0.00049315,120]
[357022621,1743585032081,-501.93740442,0.00049315,120]
[357022622,1743585032091,-502.96521338,0.00049315,120]
[357022623,1743585032103,-502.29090362,0.00049315,120]
[357022624,1743585032113,-501.66559233,0.00049315,120]
[357022625,1743585032123,-545.9842874,0.00049315,120]
[357022626,1743585032132,-501.22481802,0.00049315,120]
[357022627,1743585032141,-501.91533824,0.00049315,120]
[357022628,1743585032151,-500.0,0.00049315,120]
[357022629,1743585032160,-504.4541562,0.00049315,120]
[357022630,1743585032170,-520.20378048,0.00049315,120]
[357022631,1743585032179,-500.0,0.00049315,120]
[357022632,1743585032189,-511.51149262,0.00049315,120]
[357022633,1743585032199,-297.62060178,0.00049315,120]
[357022634,1743585032208,-500.0,0.00049315,120]
[357022635,1743585032218,-265.63338973,0.00049315,120]
[357022636,1743585032229,-512.36982264,0.00049315,120]
[357022637,1743585032239,-502.90134184,0.00049315,120]
[357022638,1743585032249,-501.9976211,0.00049315,120]
[357022639,1743585032260,-607.6405502,0.00049315,120]
[357022640,1743585032271,-453.18922912,0.00049315,120]
[357022641,1743585032283,-500.0,0.00049315,120]
[357022642,1743585032295,-500.0,0.00049315,120]
[357022643,1743585032306,-500.0,0.00049315,120]
[357022644,1743585032317,-500.0,0.00049315,120]
[357022645,1743585032327,-500.0,0.00049315,120]
[357022646,1743585032338,-547.75,0.00049315,120]
[357022647,1743585032354,-329.51037368,0.00049315,120]
[357022648,1743585032364,-169.83,0.00049315,120]
[357022649,1743585032376,-200.0,0.00049323,2]
[357022650,1743585032389,-1000.0,0.00049335,120]
[357022651,1743585032399,-214.07,0.00049576,2]
[357022652,1743585032409,-305.95805761,0.00049579,2]
[357022653,1743585032420,-382.66093179,0.00049589,120]
[357022654,1743585032431,-290.61757042,0.00049589,120]
[357022655,1743585032441,-503.45364113,0.00049589,120]
[357022656,1743585032450,-503.41213151,0.00049589,120]
[357022657,1743585032462,-506.06147388,0.00049589,120]
[357022658,1743585032472,-521.22820115,0.00049589,120]
[357022659,1743585032483,-514.39256325,0.00049589,120]
[357022660,1743585032493,-533.87788723,0.00049589,120]
[357022662,1743585032504,-503.60478794,0.00049589,120]
[357022664,1743585032514,-500.0,0.00049589,120]
[357022666,1743585032523,-500.0,0.00049589,120]
[357022668,1743585032533,-500.0,0.00049589,120]
[357022670,1743585032543,-497.42116,0.00049589,120]
[357022672,1743585032553,-500.0,0.00049589,120]
[357022675,1743585032572,-500.0,0.00049589,120]
[357022677,1743585032582,-504.48706099,0.00049863,120]
[357022679,1743585032595,-500.0,0.00049863,120]
[357022681,1743585032607,-2112.5187,0.000499,2]
[357022683,1743585032616,-353.71731408,0.000499,15]
[357022685,1743585032625,-152.19608608,0.000499,120]
[357022698,1743585032817,-500.0,0.00049969,120]
[357022700,1743585032828,-500.0,0.00049969,120]
[357022702,1743585032838,-500.0,0.00049969,30]
[357022703,1743585032851,-591.56,0.00049969,120]
[357022705,1743585032860,-5067.7,0.00049969,120]
[357022707,1743585032870,-549.23153483,0.00049973,10]
[357022708,1743585032879,-200.0,0.0004998,7]
[357022710,1743585032889,-156.15,0.0005,120]
[357022712,1743585032899,-5941.74017251,0.0005,120]
[357022714,1743585032911,-6083.12293886,0.0005,120]
[357022716,1743585032922,-898.6622849,0.0005,120]
[357022718,1743585032937,-394.62469426,0.0005,120]
[357022720,1743585032948,-1095.15854495,0.0005,120]
[357022722,1743585032959,-548.56913582,0.0005,120]
[357022723,1743585032970,-64984.4676685,0.0005,120]
[357022725,1743585032981,-400.41195319,0.0005,120]
[357022727,1743585032992,-3479.96276234,0.0005,120]
[357022730,1743585033015,-3352.73628802,0.0005,120]
[357022731,1743585033026,-391.2107439,0.0005,120]
[357022734,1743585033038,-2904.14323361,0.0005,120]
[357022736,1743585033048,-1635.80895032,0.0005,120]
[357022770,1743585037954,-8382.15242882,0.0005,120]
[357022771,1743585037968,-200.0,0.0005,120]
[357022772,1743585037978,-3653.3180214,0.0005,5]
[357022773,1743585037988,-223.0,0.00050036,120]
[357022774,1743585037997,-206.04,0.00050036,2]
[357022775,1743585038007,-500.0,0.00050088,2]
[357022776,1743585038018,-1000.0,0.00050118,2]
[357022777,1743585038027,-1008.45264433,0.00050118,2]
[357022778,1743585038036,-500.0,0.00050136,120]
[357022779,1743585038045,-152.19608605,0.00050213,120]
[357022780,1743585038055,-500.0,0.00050243,120]
[357022781,1743585038064,-500.0,0.00050243,30]
[357022782,1743585038073,-576.15082206,0.00050243,120]
[357022783,1743585038086,-15.40917794,0.00050243,120]
[357022784,1743585038099,-5067.7,0.00050243,120]
[357022785,1743585038110,-500.0,0.0005041,120]
[357022786,1743585038120,-200.0,0.0005048,7]
[357022787,1743585038129,-500.0,0.00050517,30]
[357022788,1743585038139,-591.56,0.00050517,120]
[357022789,1743585038149,-3278.7871426,0.00050517,120]
[357022812,1743585038571,-1788.9128574,0.00050517,120]
[357022814,1743585038580,-152.19608605,0.00050525,120]
[357022816,1743585038589,-771.60121939,0.00050636,2]
[357022818,1743585038601,-500.0,0.00050682,120]
[357022820,1743585038610,-555.59225395,0.00050682,120]
[357022822,1743585038620,-560.33371832,0.00050682,120]
[357022824,1743585038630,-500.0,0.00050682,120]
[357022826,1743585038640,-557.15940042,0.00050682,120]
[357022828,1743585038649,-546.18589203,0.00050682,120]
[357022830,1743585038658,-564.33650432,0.00050682,120]
[357022832,1743585038668,-641.38933858,0.00050682,120]
[357022834,1743585038677,-150.0,0.00050682,120]
[357022836,1743585038687,-874.22,0.00050682,30]
[357022838,1743585038696,-500.0,0.00050682,120]
[357022840,1743585038705,-500.0,0.00050682,120]
[357022842,1743585038715,-1215.49,0.00050682,120]
[357022844,1743585038724,-500.0,0.00050682,120]
[357022846,1743585038734,-500.0,0.00050682,120]
[357022848,1743585038743,-614.91485746,0.00050682,120]
[357022850,1743585038752,-500.0,0.00050682,120]
[357022852,1743585038762,-1311.5,0.00050682,120]
[357022854,1743585038771,-500.0,0.00050682,120]
[357022856,1743585038780,-508.23020865,0.00050682,120]
[357022858,1743585038790,-500.0,0.00050682,120]
[357022860,1743585038800,-500.0,0.00050682,120]
[357022862,1743585038810,-823.75,0.00050682,120]
[357022864,1743585038819,-500.0,0.00050682,120]
[357022866,1743585038829,-500.0,0.00050682,120]
[357022868,1743585038838,-614.24047965,0.00050682,120]
[357022870,1743585038848,-568.08040541,0.00050682,120]
[357022872,1743585038858,-585.43575491,0.00050682,120]
[357022874,1743585038867,-500.0,0.00050682,120]
[357022876,1743585038876,-500.0,0.00050682,120]
[357022878,1743585038886,-500.0,0.00050682,120]
[357022880,1743585038895,-500.0,0.00050682,120]
[357022882,1743585038903,-500.0,0.00050682,120]
[357022884,1743585038913,-550.06,0.00050682,7]
[357022886,1743585038922,-500.0,0.00050682,120]
[357022887,1743585038930,-500.0,0.00050682,120]
[357022888,1743585038939,-500.0,0.00050682,120]
[357022889,1743585038947,-500.0,0.00050682,120]
[357022890,1743585038956,-498.20015997,0.00050682,120]
[357022891,1743585038965,-603.25,0.00050682,120]
[357022892,1743585038973,-500.0,0.00050682,120]
[357022893,1743585038983,-500.0,0.00050683,120]
[357022894,1743585038991,-564.18278779,0.00050683,120]
[357022895,1743585039000,-500.0,0.00050683,2]
[357022896,1743585039010,-500.0,0.00050683,120]
[357022897,1743585039020,-551.17326149,0.00050683,120]
[357022898,1743585039029,-558.12979623,0.00050683,120]
[357022899,1743585039038,-500.0,0.00050683,120]
[357022901,1743585039047,-500.0,0.00050683,30]
[357022902,1743585039056,-500.0,0.00050683,120]
[357022904,1743585039065,-182.75095121,0.00050683,120]
[357022906,1743585039074,-540.451715,0.00050683,120]
[357022908,1743585039083,-500.0,0.00050683,120]
[357022910,1743585039094,-561.5023595,0.00050683,120]
[357022912,1743585039104,-500.0,0.00050683,120]
[357022914,1743585039113,-564.11634105,0.00050683,120]
[357022916,1743585039122,-549.45292784,0.00050683,120]
[357022918,1743585039134,-500.0,0.00050683,120]
[357022920,1743585039143,-542.00088441,0.00050683,120]
[357022922,1743585039152,-516.75,0.00050683,120]
[357022924,1743585039161,-500.0,0.00050683,120]
[357022926,1743585039171,-500.0,0.00050683,120]
[357022928,1743585039179,-500.0,0.00050683,120]
[357022930,1743585039188,-568.72950483,0.00050683,120]
[357022932,1743585039197,-500.0,0.00050683,120]
[357022934,1743585039206,-600.36,0.00050683,12]
[357022936,1743585039215,-510.69807552,0.00050683,120]
[357022938,1743585039224,-515.05395067,0.00050683,120]
[357022940,1743585039233,-504.05834148,0.00050683,120]
[357022942,1743585039241,-500.0,0.00050683,120]
[357022944,1743585039250,-500.0,0.00050683,120]
[357022946,1743585039259,-500.0,0.00050683,120]
[357022948,1743585039268,-500.0,0.00050683,120]
[357022950,1743585039277,-500.0,0.00050683,120]
[357022951,1743585039286,-500.0,0.00050683,120]
[357022953,1743585039295,-520.67,0.00050683,120]
[357022955,1743585039304,-500.0,0.00050683,120]
[357022957,1743585039312,-500.0,0.00050683,120]
[357022959,1743585039321,-500.0,0.00050683,120]
[357022961,1743585039330,-500.0,0.00050683,120]
[357022963,1743585039339,-500.0,0.00050683,120]
[357022965,1743585039348,-500.0,0.00050683,120]
[357022967,1743585039357,-500.0,0.00050683,120]
[357022969,1743585039366,-499.52136479,0.00050683,120]
[357022971,1743585039377,-500.0,0.00050683,120]
[357022973,1743585039386,-500.0,0.00050683,120]
[357022975,1743585039395,-500.0,0.00050683,120]
[357022977,1743585039404,-500.0,0.00050683,120]
[357022979,1743585039413,-500.0,0.00050683,120]
[357022980,1743585039422,-500.0,0.00050683,120]
[357022982,1743585039431,-500.0,0.00050683,120]
[357022984,1743585039441,-500.0,0.00050684,120]
[357022986,1743585039450,-500.0,0.00050791,30]
[357022989,1743585039463,-591.56,0.00050791,120]
[357022991,1743585039473,-5067.7,0.00050791,120]
[357022993,1743585039482,-152.19608605,0.00050838,120]
[357022994,1743585039492,-1115.62,0.00050947,2]
[357022997,1743585039501,-595.66353582,0.00050955,120]
[357022998,1743585039510,-560.97116948,0.00050955,120]
[357023000,1743585039520,-500.0,0.00050955,120]
[357023002,1743585039529,-500.0,0.00050955,120]
[357023004,1743585039539,-500.0,0.00050955,120]
[357023006,1743585039548,-207.76044596,0.00050955,120]
[357023008,1743585039557,-500.0,0.00050955,120]
[357023010,1743585039566,-500.0,0.00050955,120]
[357023012,1743585039575,-500.0,0.00050955,120]
[357023014,1743585039584,-500.0,0.00050955,120]
[357023016,1743585039594,-500.0,0.00050956,120]
[357023018,1743585039604,-507.40146784,0.00050956,120]
[357023020,1743585039613,-150.0,0.00050956,120]
[357023022,1743585039623,-874.22,0.00050956,30]
[357023024,1743585039632,-500.0,0.00050956,120]
[357023026,1743585039642,-500.0,0.00050956,120]
[357023028,1743585039651,-1215.49,0.00050956,120]
[357023030,1743585039661,-500.0,0.00050956,120]
[357023032,1743585039670,-500.0,0.00050956,120]
[357023034,1743585039680,-500.0,0.00050956,120]
[357023036,1743585039689,-1311.5,0.00050956,120]
[357023038,1743585039699,-448.15633536,0.00050956,120]
[357023040,1743585039708,-500.0,0.00050956,120]
[357023042,1743585039717,-500.0,0.00050956,120]
[357023044,1743585039726,-823.75,0.00050956,120]
[357023046,1743585039736,-500.0,0.00050956,120]
[357023048,1743585039745,-500.0,0.00050956,120]
[357023050,1743585039754,-500.0,0.00050956,120]
[357023052,1743585039763,-500.0,0.00050956,120]
[357023054,1743585039772,-500.0,0.00050956,120]
[357023056,1743585039781,-500.0,0.00050956,120]
[357023058,1743585039790,-550.06,0.00050956,7]
[357023060,1743585039799,-335.75408297,0.00050956,120]
[357023062,1743585039808,-500.0,0.00050956,120]
[357023064,1743585039817,-500.0,0.00050956,120]
[357023066,1743585039826,-603.25,0.00050956,120]
[357023068,1743585039836,-203.06945341,0.00050957,120]
[357023070,1743585039846,-500.0,0.00050957,2]
[357023072,1743585039855,-500.0,0.00050957,120]
[357023074,1743585039864,-500.0,0.00050957,120]
[357023076,1743585039873,-500.0,0.00050957,30]
[357023078,1743585039882,-500.0,0.00050957,120]
[357023080,1743585039892,-500.0,0.00050957,120]
[357023082,1743585039901,-500.0,0.00050957,120]
[357023084,1743585039910,-500.0,0.00050957,120]
[357023086,1743585039919,-516.75,0.00050957,120]
[357023087,1743585039928,-500.0,0.00050957,120]
[357023089,1743585039937,-500.0,0.00050957,120]
[357023091,1743585039946,-500.0,0.00050957,120]
[357023093,1743585039955,-600.36,0.00050957,12]
[357023095,1743585039964,-500.0,0.00050957,120]
[357023099,1743585039973,-500.0,0.00050957,120]
[357023102,1743585039981,-588.74566189,0.00050957,120]
[357023105,1743585039991,-500.0,0.00050957,120]
[357023107,1743585040000,-500.0,0.00050957,120]
[357023109,1743585040009,-520.67,0.00050957,120]
[357023111,1743585040018,-500.0,0.00050957,120]
[357023113,1743585040027,-500.0,0.00050957,120]
[357023115,1743585040036,-500.0,0.00050957,120]
[357023117,1743585040045,-500.0,0.00050957,120]
[357023120,1743585040054,-268.20250954,0.00050957,120]
[357023123,1743585040064,-500.0,0.00050957,120]
[357023125,1743585040073,-500.0,0.00050957,120]
[357023127,1743585040082,-500.0,0.00050957,120]
[357023129,1743585040091,-500.0,0.00050957,120]
[357023131,1743585040101,-500.0,0.00050957,120]
[357023133,1743585040111,-500.0,0.00050957,120]
[357023135,1743585040121,-500.0,0.00050957,120]
[357023137,1743585040130,-500.0,0.00050957,120]
[357023139,1743585040139,-500.0,0.00050958,120]
[357023141,1743585040147,-152.63,0.00051,48]
[357023143,1743585040157,-152.63,0.00051,48]
[357023145,1743585040167,-353.71731405,0.00051011,15]
[357023147,1743585040176,-500.0,0.00051065,30]
[357023149,1743585040185,-591.56,0.00051065,120]
[357023151,1743585040194,-5067.7,0.00051065,120]
[357023153,1743585040203,-152.19608605,0.0005115,120]
[357023155,1743585040213,-11828.6390734,0.00051221,4]
[357023157,1743585040222,-500.0,0.00051229,120]
[357023159,1743585040231,-420.82318099,0.00051229,120]
[357023161,1743585040241,-500.0,0.0005123,120]
[357023163,1743585040250,-150.0,0.0005123,120]
[357023165,1743585040259,-874.22,0.0005123,30]
[357023167,1743585040268,-521.16926711,0.0005123,120]
[357023169,1743585040278,-1215.49,0.0005123,120]
[357023171,1743585040287,-500.0,0.0005123,120]
[357023173,1743585040296,-500.0,0.0005123,120]
[357023175,1743585040306,-1311.5,0.0005123,120]
[357023177,1743585040315,-823.75,0.0005123,120]
[357023179,1743585040324,-500.0,0.0005123,120]
[357023181,1743585040334,-539.7,0.0005123,120]
[357023183,1743585040343,-500.0,0.0005123,120]
[357023185,1743585040354,-500.0,0.0005123,120]
[357023187,1743585040364,-500.0,0.0005123,120]
[357023189,1743585040373,-500.0,0.0005123,120]
[357023201,1743585040485,-550.06,0.0005123,7]
[357023203,1743585040496,-500.0,0.0005123,120]
[357023205,1743585040505,-603.25,0.0005123,120]
[357023207,1743585040515,-500.0,0.00051231,2]
[357023209,1743585040524,-500.0,0.00051231,120]
[357023211,1743585040533,-500.0,0.00051231,120]
[357023213,1743585040543,-516.75,0.00051231,120]
[357023215,1743585040552,-500.0,0.00051231,120]
[357023217,1743585040561,-500.0,0.00051231,120]
[357023219,1743585040571,-600.36,0.00051231,12]
[357023221,1743585040580,-500.0,0.00051231,120]
[357023223,1743585040590,-500.0,0.00051231,120]
[357023226,1743585040600,-520.67,0.00051231,120]
[357023228,1743585040609,-500.0,0.00051231,120]
[357023229,1743585040619,-329.2902198,0.00051231,120]
[357023232,1743585040629,-500.0,0.00051231,120]
[357023234,1743585040639,-500.0,0.00051231,120]
[357023236,1743585040649,-500.0,0.00051231,120]
[357023238,1743585040659,-500.0,0.00051231,120]
[357023240,1743585040668,-238.21920333,0.00051231,120]
[357023242,1743585040677,-500.0,0.00051231,120]
[357023243,1743585040687,-500.0,0.00051231,120]
[357023245,1743585040697,-165.4,0.00051232,120]
[357023248,1743585040707,-500.0,0.00051339,30]
[357023250,1743585040717,-591.56,0.00051339,120]
[357023252,1743585040727,-5067.7,0.00051339,120]
[357023254,1743585040737,-915.54969587,0.00051405,15]
[357023256,1743585040748,-152.19608605,0.00051463,120]
[357023258,1743585040758,-11828.6390734,0.00051495,4]
[357023260,1743585040767,-500.0,0.00051503,120]
[357023262,1743585040777,-301.86014264,0.00051504,120]
[357023264,1743585040787,-150.0,0.00051504,120]
[357023266,1743585040796,-874.22,0.00051504,30]
[357023268,1743585040805,-1215.49,0.00051504,120]
[357023270,1743585040814,-500.0,0.00051504,120]
[357023272,1743585040824,-403.46762494,0.00051504,120]
[357023274,1743585040834,-1311.5,0.00051504,120]
[357023276,1743585040843,-823.75,0.00051504,120]
[357023278,1743585040854,-500.0,0.00051504,120]
[357023280,1743585040864,-500.0,0.00051504,120]
[357023282,1743585040874,-374.74,0.00051504,120]
[357023284,1743585040883,-500.0,0.00051504,120]
[357023286,1743585040893,-500.0,0.00051504,120]
[357023288,1743585040902,-550.06,0.00051504,7]
[357023290,1743585040911,-500.0,0.00051504,120]
[357023292,1743585040921,-603.25,0.00051504,120]
[357023294,1743585040930,-500.0,0.00051505,2]
[357023296,1743585040940,-500.0,0.00051505,120]
[357023298,1743585040949,-500.0,0.00051505,120]
[357023300,1743585040959,-516.75,0.00051505,120]
[357023302,1743585040968,-500.0,0.00051505,120]
[357023304,1743585040978,-153.91519671,0.00051505,120]
[357023306,1743585040987,-600.36,0.00051505,12]
[357023308,1743585040997,-500.0,0.00051505,120]
[357023310,1743585041006,-500.0,0.00051505,120]
[357023312,1743585041015,-520.67,0.00051505,120]
[357023314,1743585041025,-500.0,0.00051505,120]
[357023316,1743585041035,-500.0,0.00051505,120]
[357023318,1743585041044,-500.0,0.00051505,120]
[357023320,1743585041054,-474.67449241,0.00051505,120]
[357023322,1743585041063,-500.0,0.00051505,120]
[357023324,1743585041072,-500.0,0.00051505,120]
[357023326,1743585041081,-500.0,0.00051505,120]
[357023328,1743585041090,-500.0,0.00051613,30]
[357023330,1743585041100,-591.56,0.00051613,120]
[357023332,1743585041109,-5067.7,0.00051613,120]
[357023334,1743585041119,-151.0,0.00051613,120]
[357023336,1743585041128,-151.0,0.00051613,120]
[357023338,1743585041137,-155.502414,0.00051613,120]
[357023340,1743585041147,-151.0,0.00051613,120]
[357023342,1743585041156,-151.0,0.00051613,120]
[357023344,1743585041165,-151.0,0.00051613,120]
[357023346,1743585041174,-11828.6390734,0.00051769,4]
[357023348,1743585041183,-152.19608605,0.00051775,120]
[357023350,1743585041193,-500.0,0.00051777,120]
[357023352,1743585041202,-150.0,0.00051778,120]
[357023354,1743585041211,-874.22,0.00051778,30]
[357023356,1743585041219,-1215.49,0.00051778,120]
[357023358,1743585041228,-500.0,0.00051778,120]
[357023360,1743585041237,-1311.5,0.00051778,120]
[357023362,1743585041246,-823.75,0.00051778,120]
[357023364,1743585041255,-500.0,0.00051778,120]
[357023366,1743585041264,-500.0,0.00051778,120]
[357023368,1743585041274,-500.0,0.00051778,120]
[357023370,1743585041283,-500.0,0.00051778,120]
[357023372,1743585041292,-550.06,0.00051778,7]
[357023374,1743585041301,-533.9,0.00051778,120]
[357023376,1743585041310,-603.25,0.00051778,120]
[357023378,1743585041319,-480.00882991,0.00051779,2]
[357023380,1743585041328,-500.0,0.00051779,120]
[357023382,1743585041338,-462.32348681,0.00051779,120]
[357023384,1743585041348,-516.75,0.00051779,120]
[357023386,1743585041357,-500.0,0.00051779,120]
[357023388,1743585041367,-600.36,0.00051779,12]
[357023390,1743585041376,-500.0,0.00051779,120]
[357023392,1743585041388,-500.0,0.00051779,120]
[357023394,1743585041397,-520.67,0.00051779,120]
[357023396,1743585041406,-399.02,0.00051779,120]
[357023398,1743585041415,-500.0,0.00051779,120]
[357023400,1743585041425,-500.0,0.00051779,120]
[357023402,1743585041434,-500.0,0.00051779,120]
[357023404,1743585041442,-500.0,0.00051779,120]
[357023406,1743585041451,-500.0,0.00051779,120]
[357023408,1743585041460,-777.50591618,0.00051787,23]
[357023409,1743585041470,-1000.0,0.00051814,16]
[357023410,1743585041479,-214.07,0.0005184,2]
[357023411,1743585041487,-500.0,0.00051887,30]
[357023412,1743585041496,-591.56,0.00051887,120]
[357023413,1743585041505,-5067.7,0.00051887,120]
[357023414,1743585041516,-153.756309,0.00051887,30]
[357023415,1743585041524,-151.0,0.00051887,120]
[357023416,1743585041533,-156.560563,0.00051887,120]
[357023417,1743585041541,-151.947987,0.00051887,120]
[357023418,1743585041550,-158.544141,0.00051887,120]
[357023419,1743585041558,-500.99271867,0.00052,120]
[357023420,1743585041567,-10524.49162488,0.00052043,4]
[357023428,1743585041635,-582.90293132,0.00052043,4]
[357023430,1743585041647,-721.2445172,0.00052043,4]
[357023432,1743585041655,-289.44,0.00052052,120]
[357023434,1743585041665,-874.22,0.00052052,30]
[357023436,1743585041674,-660.60087418,0.00052052,120]
[357023438,1743585041686,-554.88912582,0.00052052,120]
[357023440,1743585041695,-500.0,0.00052052,120]
[357023442,1743585041704,-1311.5,0.00052052,120]
[357023444,1743585041713,-823.75,0.00052052,120]
[357023446,1743585041722,-500.0,0.00052052,120]
[357023448,1743585041731,-277.6827174,0.00052052,120]
[357023450,1743585041743,-222.3172826,0.00052052,120]
[357023452,1743585041752,-500.0,0.00052052,120]
[357023454,1743585041761,-500.0,0.00052052,120]
[357023456,1743585041770,-550.06,0.00052052,7]
[357023458,1743585041780,-603.25,0.00052052,120]
[357023460,1743585041788,-137.76114307,0.00052053,120]
[357023462,1743585041800,-362.23885693,0.00052053,120]
[357023464,1743585041809,-369.61485337,0.00052053,120]
[357023469,1743585041846,-147.13514663,0.00052053,120]
[357023471,1743585041855,-500.0,0.00052053,120]
[357023473,1743585041865,-600.36,0.00052053,12]
[357023475,1743585041874,-500.0,0.00052053,120]
[357023477,1743585041883,-500.0,0.00052053,120]
[357023479,1743585041892,-520.67,0.00052053,120]
[357023481,1743585041901,-523.33829722,0.00052053,120]
[357023483,1743585041910,-500.0,0.00052053,120]
[357023485,1743585041919,-171.06491794,0.00052053,120]
[357023487,1743585041928,-500.0,0.00052053,120]
[357023489,1743585041937,-189.19,0.00052053,120]
[357023491,1743585041946,-152.19608605,0.00052088,120]
[357023493,1743585041955,-353.71731405,0.00052122,15]
[357023494,1743585041964,-500.0,0.00052161,30]